lending/lending_fUSD_20240705
["ID","MTS","AMOUNT","RATE_DAILY","PERIOD"]
[331283689,1720179050831,-151.0,0.000199,2]
[331283690,1720179050840,-521.278902,0.000199,2]
[331283691,1720179050850,-521.278902,0.000199,2]
[331283692,1720179050860,-151.0,0.000199,2]
[331283693,1720179050869,-151.0,0.000199,2]
[331283694,1720179050879,-151.0,0.000199,2]
[331283695,1720179050889,-151.0,0.000199,2]
[331283696,1720179050899,-151.0,0.000199,2]
[331283697,1720179050909,-502.560241,0.000199,2]
[331283698,1720179050920,-502.560241,0.000199,2]
[331283699,1720179050930,-545.088173,0.000199,2]
[331283700,1720179050941,-244.69684,0.000199,2]
[331283701,1720179050951,-151.0,0.000199,2]
[331283702,1720179050961,-244.69684,0.000199,2]
[331283703,1720179050972,-801.448764,0.000199,2]
[331283704,1720179050983,-151.0,0.000199,2]
[331283705,1720179050993,-801.448764,0.000199,2]
[331283706,1720179051003,-151.744792,0.000199,2]
[331283707,1720179051013,-151.0,0.000199,2]
[331283708,1720179051023,-151.0,0.000199,2]
[331283709,1720179051033,-151.0,0.000199,2]
[331283710,1720179051044,-151.0,0.000199,2]
[331283711,1720179051054,-1580.987118,0.000199,2]
[331283712,1720179051064,-658.287217,0.000199,2]
[331283713,1720179051073,-658.287217,0.000199,2]
[331283714,1720179051083,-1580.987118,0.000199,2]
[331283715,1720179051094,-176.08955,0.000199,2]
[331283716,1720179051104,-1100.0,0.000199,7]
[331283717,1720179051114,-176.08955,0.000199,2]
[331283718,1720179051124,-152.253544,0.000199,2]
[331283719,1720179051135,-151.0,0.000199,2]
[331283720,1720179051145,-151.0,0.000199,2]
[331283721,1720179051156,-155.783799,0.000199,2]
[331283722,1720179051166,-215.183308,0.000199,2]
[331283723,1720179051176,-151.0,0.000199,2]
[331283724,1720179051187,-215.183308,0.000199,2]
[331283725,1720179051198,-6253.461121,0.000199,2]
[331283726,1720179051208,-6253.461121,0.000199,2]
[331283727,1720179051218,-163.312568,0.000199,2]
[331283728,1720179051230,-151.0,0.000199,2]
[331283729,1720179051243,-163.312568,0.000199,2]
[331283730,1720179051256,-151.0,0.000199,2]
[331283731,1720179051267,-151.0,0.000199,2]
[331283732,1720179051277,-151.0,0.000199,2]
[331283733,1720179051287,-151.0,0.000199,2]
[331283734,1720179051297,-151.0,0.000199,2]
[331283735,1720179051308,-151.0,0.000199,2]
[331283736,1720179051319,-228.808255,0.000199,2]
[331283737,1720179051329,-306.655856,0.000199,2]
[331283738,1720179051340,-151.0,0.000199,2]
[331283739,1720179051350,-151.0,0.000199,2]
[331283740,1720179051360,-151.0,0.000199,2]
[331283741,1720179051371,-306.655856,0.000199,2]
[331283742,1720179051381,-151.0,0.000199,2]
[331283743,1720179051391,-151.0,0.000199,2]
[331283744,1720179051401,-151.0,0.000199,2]
[331283745,1720179051411,-446.644278,0.000199,2]
[331283746,1720179051422,-151.0,0.000199,2]
[331283747,1720179051437,-446.644278,0.000199,2]
[331283748,1720179051448,-3188.499872,0.000199,2]
[331283749,1720179051458,-3188.499872,0.000199,2]
[331283750,1720179051473,-19804.68706189,0.00019964,2]
[331283751,1720179051484,-173.8234745,0.00019964,2]
[331283752,1720179051495,-968.92161463,0.0001999,2]
[331283753,1720179051505,-155.33097722,0.0002,2]
[331283754,1720179051517,-327.37681566,0.0002,2]
[331283755,1720179051527,-1640.39859968,0.0002,2]
[331283756,1720179051725,-4641.21918295,0.0002,2]
[331283757,1720179051734,-868.10770587,0.0002,2]
[331283758,1720179051744,-155.0,0.0002,2]
[331283759,1720179051757,-454.67894768,0.0002,4]
[331283760,1720179051767,-2248.24785806,0.0002,2]
[331283761,1720179051777,-12784.54031181,0.0002,3]
[331283762,1720179051787,-188.29048302,0.0002,2]
[331283763,1720179051796,-155.29914869,0.0002,3]
[331283764,1720179051806,-151.0,0.0002,2]
[331283765,1720179051817,-151.0,0.0002,2]
[331283766,1720179051827,-226.729553,0.0002,2]
[331283767,1720179051837,-154.122925,0.0002,2]
[331283768,1720179051847,-154.122925,0.0002,2]
[331283769,1720179051856,-1250.0,0.0002,2]
[331283770,1720179051866,-28354.39456528,0.0002,5]
[331283771,1720179051876,-1287.86499446,0.0002,2]
[331283772,1720179051886,-214.50967072,0.0002,2]
[331283773,1720179051897,-214.50967072,0.0002,2]
[331283774,1720179051907,-214.50967072,0.0002,2]
[331283775,1720179051918,-214.50967072,0.0002,2]
[331283776,1720179051927,-214.50967072,0.0002,2]
[331283777,1720179051937,-214.50967072,0.0002,2]
[331283778,1720179051947,-214.50967072,0.0002,2]
[331283779,1720179051957,-214.50967072,0.0002,2]
[331283780,1720179051966,-214.50967072,0.0002,2]
[331283781,1720179051979,-214.50967072,0.0002,2]
[331283782,1720179051989,-214.50967072,0.0002,2]
[331283783,1720179051999,-214.50967072,0.0002,2]
[331283784,1720179052009,-214.50967072,0.0002,2]
[331283785,1720179052019,-214.50967072,0.0002,2]
[331283786,1720179052029,-214.50967072,0.0002,2]
[331283787,1720179052039,-214.50967072,0.0002,2]
[331283788,1720179052048,-214.50967072,0.0002,2]
[331283789,1720179052058,-214.50967072,0.0002,2]
[331283790,1720179052068,-214.50967072,0.0002,2]
[331283791,1720179052077,-214.50967072,0.0002,2]
[331283792,1720179052087,-214.50967072,0.0002,2]
[331283793,1720179052097,-214.50967072,0.0002,2]
[331283794,1720179052106,-214.50967072,0.0002,2]
[331283795,1720179052116,-214.50967072,0.0002,2]
[331283796,1720179052125,-214.50967072,0.0002,2]
[331283797,1720179052135,-214.50967072,0.0002,2]
[331283798,1720179052144,-214.50967072,0.0002,2]
[331283799,1720179052154,-214.50967072,0.0002,2]
[331283800,1720179052164,-200.0,0.00020001,2]
[331283801,1720179052174,-208.32472,0.0002008,2]
[331283802,1720179052184,-820.86685,0.0002008,2]
[331283803,1720179052194,-437.65,0.00020227,2]
[331283804,1720179052204,-167.0,0.00020273,2]
[331283805,1720179052213,-185.67297,0.00020274,2]
[331283806,1720179052224,-472.08340634,0.00020321,2]
[331283807,1720179052236,-154.5,0.00020423,2]
[331283808,1720179052247,-150.0,0.00020452,2]
[331283809,1720179052257,-2414.0,0.00020452,2]
[331283810,1720179052267,-1305.0,0.00020452,2]
[331283811,1720179052277,-283.0,0.00020452,2]
[331283812,1720179052287,-1988.0,0.00020452,2]
[331283813,1720179052297,-548.0,0.00020452,2]
[331283814,1720179052307,-3224.0,0.00020452,2]
[331283815,1720179052317,-360.0,0.00020452,2]
[331283816,1720179052327,-5811.0,0.00020452,2]
[331283817,1720179052337,-1250.0,0.00020452,2]
[331283818,1720179052347,-5177.0,0.00020452,2]
[331283819,1720179052358,-1658.0,0.00020452,2]
[331283820,1720179052368,-1664.0,0.00020452,2]
[331283821,1720179052378,-1830.0,0.00020452,2]
[331283822,1720179052388,-151.0,0.00020452,2]
[331283823,1720179052398,-151.0,0.00020452,2]
[331283824,1720179052408,-151.0,0.00020452,2]
[331283825,1720179052417,-151.0,0.00020452,2]
[331283826,1720179052431,-151.0,0.00020452,2]
[331283827,1720179052441,-151.0,0.00020452,2]
[331283828,1720179052451,-151.0,0.00020452,2]
[331283829,1720179052461,-151.0,0.00020452,2]
[331283830,1720179052474,-151.0,0.00020452,2]
[331283831,1720179052484,-151.0,0.00020452,2]
[331283832,1720179052493,-151.0,0.00020452,2]
[331283833,1720179052504,-189.400516,0.00020452,2]
[331283834,1720179052514,-151.0,0.00020452,2]
[331283835,1720179052524,-151.0,0.00020452,2]
[331283836,1720179052533,-521.278902,0.00020452,2]
[331283837,1720179052543,-521.278902,0.00020452,2]
[331283838,1720179052553,-151.0,0.00020452,2]
[331283839,1720179052563,-151.0,0.00020452,2]
[331283840,1720179052573,-502.560241,0.00020452,2]
[331283841,1720179052582,-545.088173,0.00020452,2]
[331283842,1720179052592,-502.560241,0.00020452,2]
[331283843,1720179052603,-545.088173,0.00020452,2]
[331283844,1720179052613,-151.0,0.00020452,2]
[331283845,1720179052623,-190.16634042,0.000205,2]
[331283846,1720179052633,-250.0,0.000205,2]
[331283847,1720179052642,-151.0,0.000205,2]
[331283848,1720179052652,-191.484278,0.000205,2]
[331283849,1720179052661,-191.484278,0.000205,2]
[331283850,1720179052671,-6080.90112073,0.000205,2]
[331283851,1720179052680,-333.0,0.000205,2]
[331283852,1720179052690,-1092.0,0.000205,2]
[331283853,1720179052700,-551.79054283,0.000205,2]
[331283854,1720179052711,-150.0,0.00020589,2]
[331283855,1720179052724,-151.13517006,0.00020589,2]
[331283856,1720179052734,-1696.0,0.000206,2]
[331283857,1720179052744,-151.37,0.00020686,2]
[331283858,1720179052754,-449.50333,0.00020696,2]
[331283859,1720179052763,-471.409769,0.00020696,2]
[331283860,1720179052773,-407.586873,0.00020696,2]
[331283861,1720179052785,-173.229253,0.00020696,2]
[331283862,1720179052795,-175.855278,0.00020696,2]
[331283863,1720179052805,-407.586873,0.00020696,2]
[331283864,1720179052814,-310.919929,0.00020696,2]
[331283865,1720179052824,-295.55449,0.00020696,2]
[331283866,1720179052833,-815.173747,0.00020696,2]
[331283867,1720179052843,-176.06765,0.00020696,2]
[331283868,1720179052852,-899.006661,0.00020696,2]
[331283869,1720179052861,-178.470156,0.00020696,2]
[331283870,1720179052870,-942.819536,0.00020696,2]
[331283871,1720179052880,-208.32471,0.000207,2]
[331283872,1720179052889,-1569.0,0.0002076,2]
[331283873,1720179052899,-1000.0,0.000208,2]
[331283874,1720179052908,-167.0,0.00020882,2]
[331283875,1720179052917,-165.635146,0.00020912,2]
[331283876,1720179052927,-151.0,0.00020954,2]
[331283877,1720179052936,-151.0,0.00020954,2]
[331283878,1720179052945,-178.661506,0.00020954,2]
[331283879,1720179052954,-151.0,0.00020954,2]
[331283880,1720179052964,-151.0,0.00020954,2]
[331283881,1720179052974,-151.0,0.00020954,2]
[331283882,1720179052983,-2841.798486,0.00020954,2]
[331283883,1720179052993,-2841.798486,0.00020954,2]
[331283884,1720179053003,-409.371268,0.00020954,2]
[331283885,1720179053012,-151.0,0.00020954,2]
[331283886,1720179053022,-409.371268,0.00020954,2]
[331283887,1720179053031,-151.0,0.00020954,2]
[331283888,1720179053043,-151.0,0.00020954,2]
[331283889,1720179053061,-151.0,0.00020954,2]
[331283890,1720179053071,-151.0,0.00020954,2]
[331283891,1720179053081,-645.392288,0.00020954,2]
[331283892,1720179053091,-430.221928,0.00020954,2]
[331283893,1720179053101,-430.221928,0.00020954,2]
[331283894,1720179053111,-645.392288,0.00020954,2]
[331283895,1720179053121,-151.0,0.00020954,2]
[331283896,1720179053130,-151.0,0.00020954,2]
[331283897,1720179053139,-151.0,0.00020954,2]
[331283898,1720179053148,-449.50333,0.00020954,2]
[331283899,1720179053158,-471.409769,0.00020954,2]
[331283900,1720179053168,-407.586873,0.00020954,2]
[331283901,1720179053177,-175.855278,0.00020954,2]
[331283902,1720179053187,-407.586873,0.00020954,2]
[331283903,1720179053196,-310.919929,0.00020954,2]
[331283904,1720179053205,-295.55449,0.00020954,2]
[331283905,1720179053249,-815.173747,0.00020954,2]
[331283906,1720179053259,-899.006661,0.00020954,2]
[331283907,1720179053268,-942.819536,0.00020954,2]
[331283908,1720179053277,-154.324932,0.0002099,2]
[331283909,1720179053286,-151.0,0.0002099,2]
[331283910,1720179053296,-159.289949,0.0002099,2]
[331283911,1720179053305,-165.505249,0.0002099,2]
[331283912,1720179053331,-165.505249,0.0002099,2]
[331283913,1720179053374,-151.0,0.0002099,2]
[331283914,1720179053415,-151.563434,0.0002099,2]
[331283915,1720179053441,-151.0,0.0002099,2]
[331283916,1720179053451,-225.33520988,0.00021,2]
[331283917,1720179053460,-39600.8933222,0.00021,2]
[331283918,1720179053471,-151.0,0.00021,2]
[331283919,1720179053483,-158.706738,0.00021,2]
[331283920,1720179053493,-151.0,0.00021,2]
[331283921,1720179053504,-258.886601,0.00021,2]
[331283922,1720179053514,-258.886601,0.00021,2]
[331283923,1720179053524,-151.0,0.00021,2]
[331283924,1720179053535,-154.298315,0.00021,2]
[331283925,1720179053544,-151.0,0.00021,2]
[331283926,1720179053554,-151.0,0.00021,2]
[331283927,1720179053563,-151.0,0.00021,2]
[331283928,1720179053573,-244.69684,0.00021,2]
[331283929,1720179053583,-244.69684,0.00021,2]
[331283930,1720179053593,-801.448764,0.00021,2]
[331283931,1720179053603,-290.48543,0.00021,2]
[331283932,1720179053612,-801.448764,0.00021,2]
[331283933,1720179053622,-151.0,0.00021,2]
[331283934,1720179053633,-151.0,0.00021,2]
[331283935,1720179053642,-151.0,0.00021,2]
[331283936,1720179053652,-151.0,0.00021,2]
[331283937,1720179053662,-658.287217,0.00021,2]
[331283938,1720179053671,-1580.987118,0.00021,2]
[331283939,1720179053681,-658.287217,0.00021,2]
[331283940,1720179053691,-1580.987118,0.00021,2]
[331283941,1720179053700,-176.08955,0.00021,2]
[331283942,1720179053712,-176.08955,0.00021,2]
[331283943,1720179053723,-153.9,0.00021,2]
[331283944,1720179053734,-151.0,0.00021,2]
[331283945,1720179053744,-215.183308,0.00021,2]
[331283946,1720179053754,-151.0,0.00021,2]
[331283947,1720179053763,-215.183308,0.00021,2]
[331283948,1720179053773,-6253.461121,0.00021,2]
[331283949,1720179053783,-6253.461121,0.00021,2]
[331283950,1720179053792,-163.312568,0.00021,2]
[331283951,1720179053802,-151.0,0.00021,2]
[331283952,1720179053813,-163.312568,0.00021,2]
[331283953,1720179053822,-151.0,0.00021,2]
[331283954,1720179053832,-151.0,0.00021,2]
[331283955,1720179053841,-151.0,0.00021,2]
[331283956,1720179053850,-151.0,0.00021,2]
[331283957,1720179053859,-151.0,0.00021,2]
[331283958,1720179053869,-306.655856,0.00021,2]
[331283959,1720179053878,-151.0,0.00021,2]
[331283960,1720179053887,-151.0,0.00021,2]
[331283961,1720179053896,-151.0,0.00021,2]
[331283962,1720179053906,-306.655856,0.00021,2]
[331283963,1720179053915,-151.0,0.00021,2]
[331283964,1720179053924,-151.0,0.00021,2]
[331283965,1720179053933,-263.785468,0.00021,2]
[331283966,1720179053943,-446.644278,0.00021,2]
[331283967,1720179053952,-151.0,0.00021,2]
[331283968,1720179053962,-446.644278,0.00021,2]
[331283969,1720179053971,-3188.499872,0.00021,2]
[331283970,1720179053982,-3188.499872,0.00021,2]
[331283971,1720179053991,-151.0,0.00021,2]
[331283972,1720179054001,-716.86932143,0.00021012,2]
[331283973,1720179054010,-173.229253,0.00021041,2]
[331283974,1720179054023,-800.0,0.00021058,2]
[331283975,1720179054034,-151.37,0.00021078,2]
[331283976,1720179054044,-151.0,0.00021078,2]
[331283977,1720179054054,-267.734024,0.00021078,2]
[331283978,1720179054063,-151.0,0.00021078,2]
[331283979,1720179054073,-151.0,0.00021078,2]
[331283980,1720179054082,-151.0,0.00021078,2]
[331283981,1720179054091,-151.0,0.00021078,2]
[331283982,1720179054102,-226.729553,0.00021078,2]
[331283983,1720179054112,-154.122925,0.00021078,2]
[331283984,1720179054122,-154.122925,0.00021078,2]
[331283985,1720179054133,-50000.0,0.00021088,2]
[331283986,1720179054142,-151.0,0.00021088,2]
[331283987,1720179054152,-151.0,0.00021088,2]
[331283988,1720179054162,-191.484278,0.00021088,2]
[331283989,1720179054172,-191.484278,0.00021088,2]
[331283990,1720179054183,-185.67297,0.00021096,2]
[331283991,1720179054192,-496.21,0.00021169,2]
[331283992,1720179054202,-449.50333,0.00021213,2]
[331283993,1720179054212,-471.409769,0.00021213,2]
[331283994,1720179054222,-407.586873,0.00021213,2]
[331283995,1720179054237,-175.855278,0.00021213,2]
[331283996,1720179054247,-407.586873,0.00021213,2]
[331283997,1720179054256,-310.919929,0.00021213,2]
[331283998,1720179054268,-295.55449,0.00021213,2]
[331283999,1720179054277,-815.173747,0.00021213,2]
[331284000,1720179054287,-899.006661,0.00021213,2]
[331284001,1720179054297,-942.819536,0.00021213,2]
[331284002,1720179054309,-299.946203,0.00021213,2]
[331284003,1720179054319,-151.0,0.00021213,2]
[331284004,1720179054329,-151.0,0.00021213,2]
[331284005,1720179054339,-151.0,0.00021213,2]
[331284006,1720179054349,-500.0,0.00021218,2]
[331284007,1720179054359,-200.0,0.00021218,2]
[331284008,1720179054369,-208.32472,0.0002133,2]
[331284009,1720179054379,-173.229253,0.00021385,2]
[331284010,1720179054389,-180.0,0.00021397,2]
[331284011,1720179054398,-449.50333,0.00021472,2]
[331284012,1720179054408,-471.409769,0.00021472,2]
[331284013,1720179054417,-407.586873,0.00021472,2]
[331284014,1720179054430,-175.855278,0.00021472,2]
[331284015,1720179054440,-407.586873,0.00021472,2]
[331284016,1720179054449,-310.919929,0.00021472,2]
[331284017,1720179054459,-295.55449,0.00021472,2]
[331284018,1720179054470,-815.173747,0.00021472,2]
[331284019,1720179054483,-899.006661,0.00021472,2]
[331284020,1720179054493,-942.819536,0.00021472,2]
[331284021,1720179054502,-167.0,0.0002149,2]
[331284022,1720179054515,-19874.15394137,0.00021521,2]
[331284023,1720179054525,-25000.0,0.0002158,2]
[331284024,1720179054536,-1794.65407341,0.000216,2]
[331284025,1720179054546,-173.03102793,0.000216,2]
[331284026,1720179054557,-472.08340634,0.00021606,2]
[331284027,1720179054567,-151.0,0.0002163,2]
[331284028,1720179054577,-165.505249,0.0002163,2]
[331284029,1720179054587,-165.505249,0.0002163,2]
[331284030,1720179054597,-300.01,0.00021644,2]
[331284031,1720179054607,-151.65,0.00021644,2]
[331284032,1720179054617,-226.29,0.00021644,2]
[331284033,1720179054626,-339.36,0.00021644,2]
[331284034,1720179054637,-154.74,0.00021644,2]
[331284035,1720179054647,-151.0,0.00021644,2]
[331284036,1720179054656,-151.0,0.00021644,2]
[331284037,1720179054667,-151.0,0.00021644,2]
[331284038,1720179054677,-151.0,0.00021644,2]
[331284039,1720179054687,-151.0,0.00021644,2]
[331284040,1720179054698,-151.0,0.00021644,2]
[331284041,1720179054707,-521.278902,0.00021644,2]
[331284042,1720179054718,-521.278902,0.00021644,2]
[331284043,1720179054733,-151.0,0.00021644,2]
[331284044,1720179054744,-151.0,0.00021644,2]
[331284045,1720179054754,-502.560241,0.00021644,2]
[331284046,1720179054764,-545.088173,0.00021644,2]
[331284047,1720179054775,-502.560241,0.00021644,2]
[331284048,1720179054784,-545.088173,0.00021644,2]
[331284049,1720179054795,-151.0,0.00021644,2]
[331284050,1720179054804,-151.0,0.0002168,2]
[331284051,1720179054814,-151.0,0.0002168,2]
[331284052,1720179054824,-226.729553,0.0002168,2]
[331284053,1720179054834,-226.729553,0.0002168,2]
[331284054,1720179054844,-154.122925,0.0002168,2]
[331284055,1720179054854,-154.122925,0.0002168,2]
[331284056,1720179054865,-151.0,0.0002169,2]
[331284057,1720179054875,-151.0,0.0002169,2]
[331284058,1720179054885,-151.0,0.0002169,2]
[331284059,1720179054895,-191.484278,0.0002169,2]
[331284060,1720179054906,-191.484278,0.0002169,2]
[331284061,1720179054916,-276.409688,0.0002169,2]
[331284062,1720179054926,-151.802305,0.0002169,2]
[331284063,1720179054936,-151.0,0.0002169,2]
[331284064,1720179054945,-151.0,0.0002169,2]
[331284065,1720179054956,-3032.0,0.00021699,2]
[331284066,1720179054965,-13653.19836888,0.000217,2]
[331284067,1720179054984,-236346.80163112,0.000217,2]
[331284068,1720179054993,-151.0,0.000217,2]
[331284069,1720179055002,-151.0,0.000217,2]
[331284070,1720179055013,-151.0,0.000217,2]
[331284071,1720179055022,-151.687379,0.000217,2]
[331284072,1720179055032,-151.0,0.000217,2]
[331284073,1720179055043,-151.919311,0.000217,2]
[331284074,1720179055052,-151.0,0.000217,2]
[331284075,1720179055064,-151.0,0.000217,2]
[331284076,1720179055074,-165.505249,0.000217,2]
[331284077,1720179055084,-165.505249,0.000217,2]
[331284078,1720179055094,-151.0,0.000217,2]
[331284079,1720179055104,-151.0,0.000217,2]
[331284080,1720179055113,-152.576455,0.000217,2]
[331284081,1720179055123,-151.0,0.000217,2]
[331284082,1720179055133,-151.0,0.000217,2]
[331284083,1720179055143,-191.484278,0.000217,2]
[331284084,1720179055153,-191.484278,0.000217,2]
[331284085,1720179055164,-226.729553,0.000217,2]
[331284086,1720179055174,-226.729553,0.000217,2]
[331284087,1720179055184,-154.122925,0.000217,2]
[331284088,1720179055195,-154.122925,0.000217,2]
[331284089,1720179055205,-151.0,0.000217,2]
[331284090,1720179055214,-258.886601,0.000217,2]
[331284091,1720179055226,-151.0,0.000217,2]
[331284092,1720179055238,-258.886601,0.000217,2]
[331284093,1720179055248,-2841.798486,0.000217,2]
[331284094,1720179055258,-2841.798486,0.000217,2]
[331284095,1720179055268,-409.371268,0.000217,2]
[331284096,1720179055279,-151.0,0.000217,2]
[331284097,1720179055289,-409.371268,0.000217,2]
[331284098,1720179055298,-185.127849,0.000217,2]
[331284099,1720179055308,-151.0,0.000217,2]
[331284100,1720179055318,-151.0,0.000217,2]
[331284101,1720179055327,-250.600255,0.000217,2]
[331284102,1720179055337,-151.0,0.000217,2]
[331284103,1720179055348,-151.0,0.000217,2]
[331284104,1720179055357,-151.0,0.000217,2]
[331284105,1720179055367,-151.0,0.000217,2]
[331284106,1720179055381,-151.0,0.000217,2]
[331284107,1720179055392,-151.0,0.000217,2]
[331284108,1720179055403,-151.0,0.000217,2]
[331284109,1720179055413,-521.278902,0.000217,2]
[331284110,1720179055425,-521.278902,0.000217,2]
[331284111,1720179055438,-151.0,0.000217,2]
[331284112,1720179055448,-151.0,0.000217,2]
[331284113,1720179055458,-151.0,0.000217,2]
[331284114,1720179055469,-151.0,0.000217,2]
[331284115,1720179055481,-151.0,0.000217,2]
[331284116,1720179055492,-502.560241,0.000217,2]
[331284117,1720179055503,-545.088173,0.000217,2]
[331284118,1720179055512,-502.560241,0.000217,2]
[331284119,1720179055522,-545.088173,0.000217,2]
[331284120,1720179055531,-244.69684,0.000217,2]
[331284121,1720179055541,-151.0,0.000217,2]
[331284122,1720179055552,-244.69684,0.000217,2]
[331284123,1720179055562,-801.448764,0.000217,2]
[331284124,1720179055572,-801.448764,0.000217,2]
[331284125,1720179055582,-151.0,0.000217,2]
[331284126,1720179055592,-151.0,0.000217,2]
[331284127,1720179055604,-151.0,0.000217,2]
[331284128,1720179055614,-151.0,0.000217,2]
[331284129,1720179055624,-1580.987118,0.000217,2]
[331284130,1720179055635,-658.287217,0.000217,2]
[331284131,1720179055646,-132.52046826,0.000217,2]
[331284132,1720179055659,-525.76674874,0.000217,2]
[331284133,1720179055670,-784.24423888,0.000217,2]
[331284134,1720179055683,-796.74287912,0.000217,2]
[331284135,1720179055693,-176.08955,0.000217,2]
[331284136,1720179055703,-176.08955,0.000217,2]
[331284137,1720179055714,-151.0,0.000217,2]
[331284138,1720179055726,-215.183308,0.000217,2]
[331284139,1720179055736,-151.0,0.000217,2]
[331284140,1720179055746,-215.183308,0.000217,2]
[331284141,1720179055756,-6253.461121,0.000217,2]
[331284142,1720179055768,-6253.461121,0.000217,2]
[331284143,1720179055779,-163.312568,0.000217,2]
[331284144,1720179055788,-151.0,0.000217,2]
[331284145,1720179055799,-163.312568,0.000217,2]
[331284146,1720179055808,-151.0,0.000217,2]
[331284147,1720179055818,-151.0,0.000217,2]
[331284148,1720179055827,-151.0,0.000217,2]
[331284149,1720179055837,-151.0,0.000217,2]
[331284150,1720179055847,-151.0,0.000217,2]
[331284151,1720179055857,-306.655856,0.000217,2]
[331284152,1720179055867,-151.0,0.000217,2]
[331284153,1720179055876,-151.0,0.000217,2]
[331284154,1720179055886,-151.0,0.000217,2]
[331284155,1720179055896,-306.655856,0.000217,2]
[331284156,1720179055906,-151.0,0.000217,2]
[331284157,1720179055916,-151.0,0.000217,2]
[331284158,1720179055925,-446.644278,0.000217,2]
[331284159,1720179055935,-151.0,0.000217,2]
[331284160,1720179055945,-446.644278,0.000217,2]
[331284161,1720179055954,-151.0,0.000217,2]
[331284162,1720179055964,-3188.499872,0.000217,2]
[331284163,1720179055976,-645.392288,0.000217,2]
[331284164,1720179055986,-3188.499872,0.000217,2]
[331284165,1720179056023,-430.221928,0.000217,2]
[331284166,1720179056035,-430.221928,0.000217,2]
[331284167,1720179056045,-645.392288,0.000217,2]
[331284168,1720179056056,-151.0,0.000217,2]
[331284169,1720179056065,-151.0,0.000217,2]
[331284170,1720179056075,-11104.69866345,0.000217,2]
[331284171,1720179056085,-200.51835883,0.00021709,2]
[331284172,1720179056096,-1794.65407334,0.00021717,2]
[331284173,1720179056107,-449.50333,0.0002173,2]
[331284174,1720179056117,-471.409769,0.0002173,2]
[331284175,1720179056127,-407.586873,0.0002173,2]
[331284176,1720179056136,-175.855278,0.0002173,2]
[331284177,1720179056146,-407.586873,0.0002173,2]
[331284178,1720179056155,-310.919929,0.0002173,2]
[331284179,1720179056165,-295.55449,0.0002173,2]
[331284180,1720179056175,-815.173747,0.0002173,2]
[331284181,1720179056184,-899.006661,0.0002173,2]
[331284182,1720179056194,-942.819536,0.0002173,2]
[331284183,1720179056203,-176.06765,0.0002173,2]
[331284184,1720179056213,-178.470156,0.0002173,2]
[331284185,1720179056223,-173.229253,0.0002173,2]
[331284186,1720179056238,-151.0,0.00021741,2]
[331284187,1720179056249,-151.0,0.00021741,2]
[331284188,1720179056259,-19999.99,0.00021757,2]